Workbook

Sheet Istruzioni
B2: Istruzioni
B3: Nel foglio "Configurazione" devi inserire i dati della tua azienda
B4: Nel foglio "Fattura", sulla destra devi inserire i dati del documento, del cliente e le modalità di pagamento
B5: Nel foglio "fattura" puoi richiamare le funzionalità seguenti con i relativi pulsanti:
B6: • Stampa PDF: produce una stampa PDF della fattura
B7: • Genera Fattura XML: produce l'XML della fattura nel formato della fatturazione elettronica pronto per essere caricato sul portale "Fatture e corrispettivi" dell'Agenzia delle Entrate
B8: • Pulisci Modulo: ripulisce i dati della fattura per poter inserire una nuova fattura
B9: Il foglio "Elenchi" non va modificato. Contiene degli elenchi di informazioni richiamate sul foglio Fattura
B11: Per maggiori informazioni visita la pagina
B12: https://www.gardainformatica.it/modello-excel-fatture
B14: Questo modello Excel è una risorsa gratuita di Garda Informatica
B16: Garda Informatica è la Software House che realizza Gestionali in Cloud, su misura e in tempi rapidi, grazie al META-Sviluppo RAPIDO.
B17: https://www.gardainformatica.it

Sheet Configurazione
A1: I dati della tua azienda
A3: Denominazione / Nome e cognome | B3: AZIENDA ESEMPIO SRL
A4: Partita IVA | B4: 01234567890
A5: Codice fiscale | B5: 01234567890
A6: Regime fiscale | B6: RF01: Ordinario | D6: =VLOOKUP(B6,RegimiFiscali[],2,FALSE) -> RF01
A7: Indirizzo | B7: Via Roma
A8: Numero civico | B8: 1
A9: CAP | B9: 00100
A10: Comune | B10: Roma
A11: Provincia | B11: RM
A12: REA Ufficio | B12: RM | C12: <- Obbligatorio per società soggette al vincolo dell’iscrizione nel registro delle imprese
A13: REA Numero | B13: 123456 | C13: <- Obbligatorio per società soggette al vincolo dell’iscrizione nel registro delle imprese
A14: Capitale sociale | B14: 10000 | C14: <- Obbligatorio nei soli casi di società di capitali (SpA, SApA, SRL)
A15: Socio unico | B15: SM: Più soci | C15: <- Obbligatorio nei soli casi di SpA e SRL | D15: =VLOOKUP(B15,Soci[],2,FALSE) -> SM
A16: Stato liquidazione | B16: LN: Non in liquidazione | D16: =VLOOKUP(B16,Liquidazione[],2,FALSE) -> LN
A17: Telefono | B17: 0300000000
A18: Email | B18: info@gardainformatica.it

Sheet Fattura
B1: =Configurazione!B3 -> AZIENDA ESEMPIO SRL | K1: Unique | L1: Codice IVA | M1: Perc. | N1: Natura | O1: Classe IVA | P1: Descrizione | Q1: Esigibilita | R1: Imponibile | S1: Imposta | T1: Tipo pagamento | U1: =Y39 -> Bonifico 30-60 gg F.M. | X1: Compila i dati qui sotto
B2: =CONCATENATE(Configurazione!B7," ",Configurazione!B8," – ",Configurazione!B9," ",Configurazione!B10," (",Configurazione!B11,")") -> Via Roma 1 – 00100 Roma (RM) | K2: =IFERROR(INDEX($I$14:$I$29, MATCH(0, COUNTIF($K$1:K1, $I$14:$I$29), 0)), "") -> 22 | L2: =IF(K2=0,"",K2) -> 22 | M2: =IF(L2="","",VLOOKUP(L2,IVA[],2,FALSE)) -> 0.22 | N2: =IF(LEFT(O2, 1)="N",O2,"") ->  | O2: =IF(L2="","",VLOOKUP(L2,IVA[],4,FALSE)) -> Imponibile | P2: =IF(L2="","",VLOOKUP(L2,IVA[],5,FALSE)) -> Imponibile 22% | Q2: =IF(O2="SplitPayment","S","I") -> I | R2: =IF(L2="","",SUMIFS($H$14:$H$29,$I$14:$I$29,L2)) -> 225 | S2: =IF(L2="","",R2*M2) -> 49.5 | T2: Banca | U2: =Y40 -> Intesa Sanpaolo | X2: Progressivo invio | Y2: 00001 | Z2: <-- Ogni volta che invii un XML alla fatturazione elettronica devi incrementare questo numero
B3: =CONCATENATE("Tel. ",Configurazione!B17," – E-mail ",Configurazione!B18) -> Tel. 0300000000 – E-mail info@gardainformatica.it | K3: =IFERROR(INDEX($I$14:$I$29, MATCH(0, COUNTIF($K$1:K2, $I$14:$I$29), 0)), "") -> 22sp | L3: =IF(K3=0,"",K3) -> 22sp | M3: =IF(L3="","",VLOOKUP(L3,IVA[],2,FALSE)) -> 0.22 | N3: =IF(LEFT(O3, 1)="N",O3,"") ->  | O3: =IF(L3="","",VLOOKUP(L3,IVA[],4,FALSE)) -> SplitPayment | P3: =IF(L3="","",VLOOKUP(L3,IVA[],5,FALSE)) -> Imp. 22% con scissione pagamenti | Q3: =IF(O3="SplitPayment","S","I") -> S | R3: =IF(L3="","",SUMIFS($H$14:$H$29,$I$14:$I$29,L3)) -> 1000 | S3: =IF(L3="","",R3*M3) -> 220 | T3: IBAN | U3: =Y41 -> IT01L2345678901234567890123
B4: =CONCATENATE("C.F. ",Configurazione!B5," – P.IVA ",Configurazione!B4," – Reg. Imprese ",Configurazione!B12,"-",Configurazione!B13) -> C.F. 01234567890 – P.IVA 01234567890 – Reg. Imprese RM-123456 | K4: =IFERROR(INDEX($I$14:$I$29, MATCH(0, COUNTIF($K$1:K3, $I$14:$I$29), 0)), "") ->  | M4: =IF(L4="","",VLOOKUP(L4,IVA[],2,FALSE)) ->  | O4: =IF(L4="","",VLOOKUP(L4,IVA[],4,FALSE)) ->  | P4: =IF(L4="","",VLOOKUP(L4,IVA[],5,FALSE)) ->  | Q4: I | R4: =IF(L4="","",SUMIFS($H$14:$H$29,$I$14:$I$29,L4)) -> 
K5: =IFERROR(INDEX($I$14:$I$29, MATCH(0, COUNTIF($K$1:K4, $I$14:$I$29), 0)), "") ->  | M5: =IF(L5="","",VLOOKUP(L5,IVA[],2,FALSE)) ->  | O5: =IF(L5="","",VLOOKUP(L5,IVA[],4,FALSE)) ->  | P5: =IF(L5="","",VLOOKUP(L5,IVA[],5,FALSE)) ->  | Q5: I | R5: =IF(L5="","",SUMIFS($H$14:$H$29,$I$14:$I$29,L5)) -> 
A6: =CONCATENATE(Y6," nr. ") -> TD01: fattura nr. | G6: =Y7 -> 1/2026 | H6: del | I6: =Y8 -> 46240 | K6: =IFERROR(INDEX($I$14:$I$29, MATCH(0, COUNTIF($K$1:K5, $I$14:$I$29), 0)), "") ->  | M6: =IF(L6="","",VLOOKUP(L6,IVA[],2,FALSE)) ->  | O6: =IF(L6="","",VLOOKUP(L6,IVA[],4,FALSE)) ->  | P6: =IF(L6="","",VLOOKUP(L6,IVA[],5,FALSE)) ->  | Q6: I | R6: =IF(L6="","",SUMIFS($H$14:$H$29,$I$14:$I$29,L6)) ->  | W6: =VLOOKUP(Y6,TipoDoc[],2,FALSE) -> TD01 | X6: Tipo documento | Y6: TD01: fattura | AA6: Causale
K7: Fine Mese | L7: =VLOOKUP(Y39,Pagamenti[],3) -> Sì | M7: Codice Pagamento | N7: =VLOOKUP(Y39,Pagamenti[],2) -> MP05 | O7: =IF(L10=0,"TP02","TP01") -> TP01 | P7: Iva non dovuta | Q7: I | R7: =SUMIFS(S2:S6,Q2:Q6,"S") -> 220 | X7: Numero fattura | Y7: 1/2026 | AA7: Bollo virtuale | AB7: NO
A8: Dati cliente | L8: GG | M8: Percentuale | N8: Data scad. | O8: Imp. Pagam | P8: Tot. Imponibile | R8: =SUM(R2:R6) -> 1225 | X8: Data fattura | Y8: 46240 | AA8: Importo bollo | AB8: 0
A9: =Y11 -> CLIENTE ESEMPIO SRL | K9: gg1 | L9: =VLOOKUP(Y39,Pagamenti[],4,FALSE) -> 30 | M9: =VLOOKUP(Y39,Pagamenti[],5,FALSE) -> 0.5 | N9: =IF($L$7="No",$Y$8+L9,IF(MOD(L9, 30)=0,EOMONTH($Y$8,INT(L9/30)),EOMONTH($Y$8+L9,0))) -> 46295 | O9: =M9*$R$12 -> 637.25 | P9: Tot. IVA | R9: =SUM(S2:S6) -> 269.5
A10: =CONCATENATE(AB10," ",AB11," – ",AB12," ",AB13," (",AB14,") – ",AB15) -> Via Milano 10 – 20100 Milano (MI) – IT | K10: gg2 | L10: =VLOOKUP(Y39,Pagamenti[],6,FALSE) -> 60 | M10: =VLOOKUP(Y39,Pagamenti[],7,FALSE) -> 0.5 | N10: =IF(L10=0,"",IF($L$7="No",$Y$8+L10,IF(MOD(L10, 30)=0,EOMONTH($Y$8,INT(L10/30)),EOMONTH($Y$8+L10,0)))) -> 46326 | O10: =IF(L10=0,"",M10*$R$12) -> 637.25 | P10: Tot. Documento | R10: =R8+R9 -> 1494.5 | W10: =VLOOKUP(Y10,FTrasmissione[],2,FALSE) -> FPR12 | X10: Formato trasmissione | Y10: Fattura verso Aziende/Privati | AA10: Indirizzo | AB10: Via Milano
A11: =CONCATENATE("C.F. ",Y13," – P.IVA ",Y12) -> C.F. – P.IVA 012345678901 | K11: gg3 | L11: =VLOOKUP(Y39,Pagamenti[],8,FALSE) -> 0 | M11: =VLOOKUP(Y39,Pagamenti[],9,FALSE) -> 0 | N11: =IF(L11=0,"",IF($L$7="No",$Y$8+L11,IF(MOD(L11, 30)=0,EOMONTH($Y$8,INT(L11/30)),EOMONTH($Y$8+L11,0)))) ->  | O11: =IF(L11=0,"",M11*$R$12) ->  | P11: Iva a carico del cess./committ. | R11: =-1*R7 -> -220 | X11: Denominazione / Nome e cognome | Y11: CLIENTE ESEMPIO SRL | AA11: Numero civico | AB11: 10
K12: gg4 | L12: =VLOOKUP(Y39,Pagamenti[],10,FALSE) -> 0 | M12: =VLOOKUP(Y39,Pagamenti[],11,FALSE) -> 0 | P12: Tot. Dovuto | R12: =R10+R11 -> 1274.5 | X12: Partita IVA | Y12: 012345678901 | AA12: CAP | AB12: 20100
A13: Descrizione | D13: Q.tà | E13: Prezzo | G13: Sconto | H13: Importo | I13: IVA | K13: Classe IVA | L13: Esigibilità | M13: Perc. | N13: Natura | X13: Codice fiscale | AA13: Comune | AB13: Milano
A14: prova | D14: 1 | E14: 250 | G14: 0.1 | H14: =IF(A14="","",D14*E14*(1-G14)) -> 225 | I14: 22 | K14: =IF(I14="","",VLOOKUP(I14,IVA[],4,FALSE)) -> Imponibile | L14: =IF(I14="","",IF(K14="SplitPayment","S","I")) -> I | M14: =IF(I14="","",VLOOKUP(I14,IVA[],2,FALSE)) -> 0.22 | N14: =IF(LEFT(K14, 1)="N",K14,"") ->  | X14: Codice destinatario | Y14: 0000000 | AA14: Provincia | AB14: MI
A15: altro | D15: 2 | E15: 500 | H15: =IF(A15="","",D15*E15*(1-G15)) -> 1000 | I15: 22sp | K15: =IF(I15="","",VLOOKUP(I15,IVA[],4,FALSE)) -> SplitPayment | L15: =IF(I15="","",IF(K15="SplitPayment","S","I")) -> S | M15: =IF(I15="","",VLOOKUP(I15,IVA[],2,FALSE)) -> 0.22 | N15: =IF(LEFT(K15, 1)="N",K15,"") ->  | X15: PEC destinatario | AA15: Nazione | AB15: IT
K16: =IF(I16="","",VLOOKUP(I16,IVA[],4,FALSE)) ->  | M16: =IF(I16="","",VLOOKUP(I16,IVA[],2,FALSE)) -> 
K17: =IF(I17="","",VLOOKUP(I17,IVA[],4,FALSE)) ->  | M17: =IF(I17="","",VLOOKUP(I17,IVA[],2,FALSE)) ->  | X17: <- Compila le righe dellla fattura a sinistra
K18: =IF(I18="","",VLOOKUP(I18,IVA[],4,FALSE)) ->  | M18: =IF(I18="","",VLOOKUP(I18,IVA[],2,FALSE)) -> 
K19: =IF(I19="","",VLOOKUP(I19,IVA[],4,FALSE)) ->  | M19: =IF(I19="","",VLOOKUP(I19,IVA[],2,FALSE)) ->  | X19: Documento emesso in seguito a/documento collegato
K20: =IF(I20="","",VLOOKUP(I20,IVA[],4,FALSE)) ->  | M20: =IF(I20="","",VLOOKUP(I20,IVA[],2,FALSE)) ->  | W20: =IF(Y20="","",VLOOKUP(Y20,DocCollegati[],2,FALSE)) ->  | X20: Tipo doc. | AA20: CIG
K21: =IF(I21="","",VLOOKUP(I21,IVA[],4,FALSE)) ->  | M21: =IF(I21="","",VLOOKUP(I21,IVA[],2,FALSE)) ->  | X21: N° | AA21: CUP
K22: =IF(I22="","",VLOOKUP(I22,IVA[],4,FALSE)) ->  | M22: =IF(I22="","",VLOOKUP(I22,IVA[],2,FALSE)) ->  | X22: Data | AA22: Commessa / Convenzione
K23: =IF(I23="","",VLOOKUP(I23,IVA[],4,FALSE)) ->  | M23: =IF(I23="","",VLOOKUP(I23,IVA[],2,FALSE)) -> 
K24: =IF(I24="","",VLOOKUP(I24,IVA[],4,FALSE)) ->  | M24: =IF(I24="","",VLOOKUP(I24,IVA[],2,FALSE)) -> 
K25: =IF(I25="","",VLOOKUP(I25,IVA[],4,FALSE)) ->  | M25: =IF(I25="","",VLOOKUP(I25,IVA[],2,FALSE)) -> 
K26: =IF(I26="","",VLOOKUP(I26,IVA[],4,FALSE)) ->  | M26: =IF(I26="","",VLOOKUP(I26,IVA[],2,FALSE)) -> 
K27: =IF(I27="","",VLOOKUP(I27,IVA[],4,FALSE)) ->  | M27: =IF(I27="","",VLOOKUP(I27,IVA[],2,FALSE)) -> 
K28: =IF(I28="","",VLOOKUP(I28,IVA[],4,FALSE)) ->  | M28: =IF(I28="","",VLOOKUP(I28,IVA[],2,FALSE)) -> 
K29: =IF(I29="","",VLOOKUP(I29,IVA[],4,FALSE)) ->  | M29: =IF(I29="","",VLOOKUP(I29,IVA[],2,FALSE)) -> 
A31: IVA | C31: Imponibile | D31: Imposta | F31: Totali
A32: =P2 -> Imponibile 22% | C32: =IF(L2="","",R2) -> 225 | D32: =IF(L2="","",S2) -> 49.5 | F32: Tot. Imponibile | H32: =R8 -> 1225
A33: =P3 -> Imp. 22% con scissione pagamenti | C33: =IF(L3="","",R3) -> 1000 | D33: =IF(L3="","",S3) -> 220 | F33: Tot. IVA | H33: =R9 -> 269.5
A34: =P4 ->  | C34: =IF(L4="","",R4) ->  | F34: Tot. Documento | H34: =R10 -> 1494.5
A35: =P5 ->  | F35: =IF(R7=0,"","Iva a carico del cess./committ.") -> Iva a carico del cess./committ. | H35: =IF(R7=0,"",R11) -> -220
A36: =P6 -> 
X37: Compila i dati dipagamento qui sotto
A38: Pagamento | C38: Scadenze
A39: =U1 -> Bonifico 30-60 gg F.M. | C39: =N9 -> 46295 | D39: =O9 -> 637.25 | X39: Tipo pagamento | Y39: Bonifico 30-60 gg F.M.
A40: =IF(N7="MP05",CONCATENATE("Banca ",U2),"") -> Banca Intesa Sanpaolo | C40: =N10 -> 46326 | D40: =O10 -> 637.25 | X40: Banca | Y40: Intesa Sanpaolo
A41: =IF(N7="MP05",CONCATENATE("IBAN: ",U3),"") -> IBAN: IT01L2345678901234567890123 | F41: Tot. Dovuto | H41: =R12 -> 1274.5 | X41: IBAN | Y41: IT01L2345678901234567890123

Sheet Elenchi
A1: Regimi fiscali
A2: Selezione | B2: Codice | C2: Descrizione
A3: =CONCATENATE(B3,": ",C3) -> RF01: Ordinario | B3: RF01 | C3: Ordinario
A4: RF02: Contribuenti minimi (art.1, c.96-117, L. 244/07) | B4: RF02 | C4: Contribuenti minimi (art.1, c.96-117, L. 244/07)
A5: RF04: Agricoltura e attività connesse e pesca (artt.34 e 34-bis, DPR 633/72) | B5: RF04 | C5: Agricoltura e attività connesse e pesca (artt.34 e 34-bis, DPR 633/72)
A6: RF05: Vendita sali e tabacchi (art.74, c.1, DPR. 633/72) | B6: RF05 | C6: Vendita sali e tabacchi (art.74, c.1, DPR. 633/72)
A7: RF06: Commercio fiammiferi (art.74, c.1, DPR 633/72) | B7: RF06 | C7: Commercio fiammiferi (art.74, c.1, DPR 633/72)
A8: RF07: Editoria (art.74, c.1, DPR 633/72) | B8: RF07 | C8: Editoria (art.74, c.1, DPR 633/72)
A9: RF08: Gestione servizi telefonia pubblica (art.74, c.1, DPR 633/72) | B9: RF08 | C9: Gestione servizi telefonia pubblica (art.74, c.1, DPR 633/72)
A10: RF09: Rivendita documenti di trasporto pubblico e di sosta (art.74, c.1, DPR 633/72) | B10: RF09 | C10: Rivendita documenti di trasporto pubblico e di sosta (art.74, c.1, DPR 633/72)
A11: RF10: Intrattenimenti, giochi e altre attività di cui alla tariffa allegata al DPR 640/72 (art.74, c.6, DPR 633/72) | B11: RF10 | C11: Intrattenimenti, giochi e altre attività di cui alla tariffa allegata al DPR 640/72 (art.74, c.6, DPR 633/72)
A12: RF11: Agenzie viaggi e turismo (art.74-ter, DPR 633/72) | B12: RF11 | C12: Agenzie viaggi e turismo (art.74-ter, DPR 633/72)
A13: RF12: Agriturismo (art.5, c.2, L. 413/91) | B13: RF12 | C13: Agriturismo (art.5, c.2, L. 413/91)
A14: RF13: Vendite a domicilio (art.25-bis, c.6, DPR 600/73) | B14: RF13 | C14: Vendite a domicilio (art.25-bis, c.6, DPR 600/73)
A15: RF14: Rivendita beni usati, oggetti d’arte, d’antiquariato o da collezione (art.36, DL 41/95) | B15: RF14 | C15: Rivendita beni usati, oggetti d’arte, d’antiquariato o da collezione (art.36, DL 41/95)
A16: RF15: Agenzie di vendite all’asta di oggetti d’arte, antiquariato o da collezione (art.40-bis, DL 41/95) | B16: RF15 | C16: Agenzie di vendite all’asta di oggetti d’arte, antiquariato o da collezione (art.40-bis, DL 41/95)
A17: RF16: IVA per cassa P.A. (art.6, c.5, DPR 633/72) | B17: RF16 | C17: IVA per cassa P.A. (art.6, c.5, DPR 633/72)
A18: RF17: IVA per cassa (art. 32-bis, DL 83/2012) | B18: RF17 | C18: IVA per cassa (art. 32-bis, DL 83/2012)
A19: RF18: Altro | B19: RF18 | C19: Altro
A20: RF19: Regime forfettario (art.1, c.54-89, L. 190/2014) | B20: RF19 | C20: Regime forfettario (art.1, c.54-89, L. 190/2014)
A23: Socio unico/Più soci
A24: Selezione | B24: Codice | C24: Descrizione
A25: =IF(B25="","",CONCATENATE(B25,": ",C25)) -> 
A26: =IF(B26="","",CONCATENATE(B26,": ",C26)) -> SU: Socio unico | B26: SU | C26: Socio unico
A27: =IF(B27="","",CONCATENATE(B27,": ",C27)) -> SM: Più soci | B27: SM | C27: Più soci
A29: Stato liquidazione
A30: Selezione | B30: Codice | C30: Descrizione
A31: =CONCATENATE(B31,": ",C31) -> LS: In liquidazione | B31: LS | C31: In liquidazione
A32: =CONCATENATE(B32,": ",C32) -> LN: Non in liquidazione | B32: LN | C32: Non in liquidazione
A34: Tipi documenti
A35: Selezione | B35: Codice | C35: Descrizione
A36: =IF(B36="",C36,CONCATENATE(B36,": ",C36)) -> fattura pro-forma | C36: fattura pro-forma
A37: TD01: fattura | B37: TD01 | C37: fattura
A38: TD02: acconto/anticipo su fattura | B38: TD02 | C38: acconto/anticipo su fattura
A39: TD03: acconto/anticipo su parcella | B39: TD03 | C39: acconto/anticipo su parcella
A40: TD04: nota di credito | B40: TD04 | C40: nota di credito
A41: TD05: nota di debito | B41: TD05 | C41: nota di debito
A42: TD06: parcella | B42: TD06 | C42: parcella
A43: TD24: fattura differita di cui all'art. 21, comma 4, lett. a) | B43: TD24 | C43: fattura differita di cui all'art. 21, comma 4, lett. a)
A44: TD25: fattura differita di cui all'art. 21, comma 4, terzo periodo lett. b) | B44: TD25 | C44: fattura differita di cui all'art. 21, comma 4, terzo periodo lett. b)
A45: TD26: cessione di beni ammortizzabili e per passaggi interni (ex art.36 DPR 633/72) | B45: TD26 | C45: cessione di beni ammortizzabili e per passaggi interni (ex art.36 DPR 633/72)
A46: TD27: fattura per autoconsumo o per cessioni gratuite senza rivalsa | B46: TD27 | C46: fattura per autoconsumo o per cessioni gratuite senza rivalsa
A48: Pagamenti
A49: Nome pagamento | B49: Codice Fatt. Elett. | C49: Fine Mese | D49: gg1 | E49: perc1 | F49: gg2 | G49: perc2 | H49: gg3 | I49: perc3 | J49: gg4 | K49: perc4
A50: Assegno | B50: MP02 | C50: No | D50: 0 | E50: 1
A51: Assegno circolare | B51: MP03 | C51: No | D51: 0 | E51: 1
A52: Bancomat | B52: MP08 | C52: No | D52: 0 | E52: 1
A53: Bonifico 30 gg D.F. | B53: MP05 | C53: No | D53: 30 | E53: 1
A54: Bonifico 60 gg D.F. | B54: MP05 | C54: No | D54: 60 | E54: 1
A55: Bonifico 90 gg D.F. | B55: MP05 | C55: No | D55: 90 | E55: 1
A56: Bonifico 120 gg D.F. | B56: MP05 | C56: No | D56: 120 | E56: 1
A57: Bonifico 30 gg F.M. | B57: MP05 | C57: Sì | D57: 30 | E57: 1
A58: Bonifico 30-60 gg F.M. | B58: MP05 | C58: Sì | D58: 30 | E58: 0.5 | F58: 60 | G58: 0.5
A59: Bonifico 30-60-90 gg F.M. | B59: MP05 | C59: Sì | D59: 30 | E59: 0.33 | F59: 60 | G59: 0.33 | H59: 90 | I59: 0.34
A60: Bonigico 30-60-90-120 gg F.M. | B60: MP05 | C60: Sì | D60: 30 | E60: 0.25 | F60: 60 | G60: 0.25 | H60: 90 | I60: 0.25 | J60: 120 | K60: 0.25
A61: Bonifico 60 gg F.M. | B61: MP05 | C61: Sì | D61: 60 | E61: 1
A62: Bonifico 90 gg F.M. | B62: MP05 | C62: Sì | D62: 90 | E62: 1
A63: Bonifico 120 gg F.M. | B63: MP05 | C63: Sì | D63: 120 | E63: 1
A64: Bonifico vista fattura | B64: MP05 | C64: No | D64: 0 | E64: 1
A65: Carta di credito | B65: MP08 | C65: No | D65: 0 | E65: 1
A66: Contanti | B66: MP01 | C66: No | D66: 0 | E66: 1
A67: Contrassegno | B67: MP01 | C67: No | D67: 0 | E67: 1
A68: Incasso corrispettivi | B68: MP01 | C68: No | D68: 0 | E68: 1
A69: PayPal | B69: MP08 | C69: No | D69: 0 | E69: 1
A70: RIBA 30 gg F.M. | B70: MP12 | C70: Sì | D70: 30 | E70: 1
A71: RIBA 30-60 gg F.M. | B71: MP12 | C71: Sì | D71: 30 | E71: 0.5 | F71: 60 | G71: 0.5
A72: RIBA 30-60-90 gg F.M. | B72: MP12 | C72: Sì | D72: 30 | E72: 0.33 | F72: 60 | G72: 0.33 | H72: 90 | I72: 0.34
A73: RIBA 60 gg F.M. | B73: MP12 | C73: Sì | D73: 60 | E73: 1
A74: RIBA 90 gg F.M. | B74: MP12 | C74: Sì | D74: 90 | E74: 1
A75: Rimessa diretta | B75: MP01 | C75: No | D75: 0 | E75: 1
A76: SDD B2B | B76: MP21 | C76: No | D76: 0 | E76: 1
A77: SDD Core | B77: MP20 | C77: No | D77: 0 | E77: 1
A78: TeamSystem Pay | B78: MP08 | C78: No | D78: 0 | E78: 1
A80: IVA
A81: Codice | B81: Percentual IVA | C81: Percentuale IVA indetraibile | D81: Classe IVA | E81: descrizione | F81: note
A82: 10 | B82: 0.1 | C82: 0 | D82: Imponibile | E82: Imponibile 10%
A83: 10sp | B83: 0.1 | C83: 0 | D83: SplitPayment | E83: Imp. 10% con scissione pagamenti | F83: Split payment verso P.A.
A84: 22 | B84: 0.22 | C84: 0 | D84: Imponibile | E84: Imponibile 22%
A85: 22d | B85: 0.22 | C85: 0.5 | D85: Imponibile | E85: Imp. 22% detr. al 50%
A86: 22i | B86: 0.22 | C86: 1 | D86: Imponibile | E86: Imp. 22% indetraibile
A87: 22sp | B87: 0.22 | C87: 0 | D87: SplitPayment | E87: Imp. 22% con scissione pagamenti | F87: Split payment verso P.A.
A88: 4 | B88: 0.04 | C88: 0 | D88: Imponibile | E88: Imponibile 4%
A89: 4sp | B89: 0.04 | C89: 0 | D89: SplitPayment | E89: Imp. 4% con scissione pagamenti | F89: Split payment verso P.A.
A90: E10 | B90: 0 | C90: 0 | D90: N4 | E90: Esente art. 10 DPR 633/72
A91: FC | B91: 0 | C91: 0 | D91: N2.2 | E91: Fuori campo IVA | F91: (Riservato alle Spese fuori campo Iva)
A92: N41 | B92: 0 | C92: 0 | D92: N3.2 | E92: Non imp. art. 41 D.L. 331/93 | F92: Cessioni UE
A93: N71 | B93: 0 | C93: 0 | D93: N3.3 | E93: Non imp. art. 71 DPR 633/72 S. Marino | F93: Cessioni San Marino
A94: N9 | B94: 0 | C94: 0 | D94: N3.4 | E94: Non imp. art. 9 DPR 633/72 | F94: Trasporti extra-UE
A95: OMG | B95: 0 | C95: 0 | D95: N4 | E95: Omaggi art. 2 c. 2 n. 4 DPR 633/72 | F95: Cessione gratuita beni oggetto dell'attivitÃ
A96: X15 | B96: 0 | C96: 0 | D96: N1 | E96: Escluso art. 15 DPR 633/72 | F96: Spese per conto dei clienti
A97: NS7x | B97: 0 | C97: 0 | D97: N2.1 | E97: Non sogg. art. 7-ter DPR 633/72 extra-UE | F97: Prestaz. servizi extra-UE
A98: R74 | B98: 0 | C98: 0 | D98: N6.1 | E98: Rev. charge art. 74 c. 7-8 DPR 633/72 | F98: Cessione rottami
A99: N8a | B99: 0 | C99: 0 | D99: N3.1 | E99: Non imp. art. 8 c. 1 lett. a DPR 633/72 | F99: Cessioni extra-UE
A100: N8b | B100: 0 | C100: 0 | D100: N3.1 | E100: Non imp. art. 8 c. 1 lett. b DPR 633/72 | F100: Cessioni extra-UE (trasp. a cura del cliente)
A101: 5 | B101: 0.05 | C101: 0 | D101: Imponibile | E101: Imponibile 5%
A102: 5sp | B102: 0.05 | C102: 0 | D102: SplitPayment | E102: Imp. 5% con scissione pagamenti | F102: Split payment verso P.A.
A103: N8c | B103: 0 | C103: 0 | D103: N3.5 | E103: Non imp. art. 8 c. 1 lett. c DPR 633/72 | F103: Dichiarazione d'intento
A104: NS74 | B104: 0 | C104: 0 | D104: N2.2 | E104: Non sogg. art. 74 c. 1 DPR 633/72 | F104: Tabacchi, editoria, ric. telefoniche
A105: RF | B105: 0 | C105: 0 | D105: N2.2 | E105: Art.1 c.54-89 L.190/2014 Reg. forfettario | F105: Regime forfettario
A106: NS7u | B106: 0 | C106: 0 | D106: N2.1 | E106: Inv. contabile art. 7-ter DPR 633/72 UE | F106: Prestaz. servizi UE
A107: R17a | B107: 0 | C107: 0 | D107: N6.3 | E107: Rev. charge art. 17 c. 6/a DPR 633/72 | F107: Subappalto edilizia
A108: R17b | B108: 0 | C108: 0 | D108: N6.5 | E108: Rev. charge art. 17 c. 6/b DPR 633/72 | F108: Cessione cellulari
A109: 22d40 | B109: 0.22 | C109: 0.6 | D109: Imponibile | E109: Imp. 22% detr. al 40%
A110: R17c | B110: 0 | C110: 0 | D110: N6.6 | E110: Rev. charge art. 17 c. 6/c DPR 633/72 | F110: Cessione microprocessori
A111: R17t | B111: 0 | C111: 0 | D111: N6.7 | E111: Rev. charge art. 17 c. 6/a-ter DPR 633/72 | F111: Prestaz. servizi su edifici
A112: NS26 | B112: 0 | C112: 0 | D112: N2.2 | E112: Non sogg. art. 26 c. 3 DPR 633/72 | F112: Nota di credito del solo imponibile
A113: E124 | B113: 0 | C113: 0 | D113: N4 | E113: Esente art. 124 D.L. 34/2020 | F113: Cessione beni emergenza Covid-19
A116: Codici SDI comuni
A117: SDI | B117: Descrizione
A118: 0000000 | B118: NO P.IVA
A119: XXXXXXX | B119: ESTERO
A120: M5UXCR1 | B120: TEAMSYSTEM / AGYO
A121: USAL8PV | B121: SISTEMI
A122: W7YVJK9 | B122: WOLTERS KLUWER
A123: KRRH6B9 | B123: ARUBA
A124: A4707H7 | B124: ARXIVAR
A125: T04ZHR3 | B125: WEBCLIENT
A126: X2PH38J | B126: BLUENEXT
A127: 5RUO82D | B127: PASSEPARTOUT
A128: T9K4ZHO | B128: DATEV KOINOS
A129: P62QHVQ | B129: SEAC
A130: SUBM70N | B130: ZUCCHETTI
A131: 5W4A8J1 | B131: COLDIRETTI
A132: UE2LXTM | B132: FINSON EXPRESS
A133: BA6ET11 | B133: BUFFETTI
A134: JHBM40P | B134: MULTIDIALOGO
A136: Formato Trasmissione
A137: Descrizione | B137: Codice
A138: Fattura verso Pubblica Amministrazione (usare codici IVA sp) | B138: FPA12
A139: Fattura verso Aziende/Privati | B139: FPR12
A141: Documento emesso in seguito a
A142: Descrizione | B142: Codice
A144: Ordine d'acquisto | B144: OrdineAcquisto
A145: Contratto | B145: Contratto
A146: Convenzione | B146: Convenzione
A147: Ricezione | B147: Ricezione
A148: Fattura collegata | B148: FattureCollegate
A149: Doc. di trasporto | B149: DDT
A150: Fattura principale | B150: FatturaPrincipale
